bitfinex-derivatives/quotes_SOLF0:USTF0_20250901
["timestamp","ask_amount","ask_price","bid_price","bid_amount"]
[1756721107836,127.56503685,201.28,201.21,4.40582488]
[1756721108040,0.28,201.26,201.1,7.46]
[1756721108344,0.28,201.23,201.22,0.03545608]
[1756721108544,0.28,201.23,201.1,7.46]
[1756721108844,126.64,201.22,201.2,0.0336235]
[1756721109036,0.27,201.21,201.1,7.46]
[1756721109344,0.27,201.21,201.11,4.40570883]
[1756721109542,126.64,201.22,201.19,0.03515722]
[1756721109744,126.64,201.22,201.11,3.48986847]
[1756721109745,126.64,201.22,201.13,7.65]
[1756721109935,126.64,201.22,201.14,4.40425957]
[1756721110135,126.64,201.22,201.18,0.03647406]
[1756721110341,126.64,201.22,201.19,4.40425957]
[1756721110540,126.64,201.22,201.18,0.03647406]
[1756721110737,0.27,201.21,201.18,0.03647406]
[1756721111046,126.64,201.22,201.18,0.03647406]
[1756721111247,126.91,201.22,201.18,0.03647406]
[1756721113349,126.54,201.22,201.18,0.03647406]
[1756721116749,0.27,201.2,201.18,0.03647406]
[1756721117748,126.81,201.22,201.18,0.03647406]
[1756721118549,2.1755616,201.23,201.19,4.40047831]
[1756721118754,126.81,201.22,201.18,0.03647406]
[1756721118940,126.81,201.22,201.19,4.40047928]
[1756721119147,126.54,201.22,201.18,0.03647406]
[1756721119342,126.54,201.22,201.19,4.40120775]
[1756721119545,126.54,201.22,201.2,4.40120775]
[1756721119745,126.54,201.22,201.21,4.40120775]
[1756721120548,126.54,201.22,201.18,0.03647406]
[1756721120549,126.82,201.22,201.18,0.03647406]
[1756721120749,0.28,201.21,201.18,0.03647406]
[1756721122251,126.54,201.22,201.18,0.03647406]
[1756721122453,126.82,201.22,201.19,4.40159498]
[1756721122651,126.82,201.22,201.18,0.03647406]
[1756721122851,126.82,201.22,201.19,4.40159465]
[1756721123046,126.82,201.22,201.18,0.03647406]
[1756721123751,126.82,201.22,201.19,4.40149867]
[1756721124054,126.82,201.22,201.18,0.03647406]
[1756721124357,126.82,201.22,201.19,4.40138992]
[1756721124650,0.28,201.26,201.18,0.03647406]
[1756721124952,0.28,201.26,201.19,6.57702264]
[1756721125252,97.02,201.25,201.2,4.40146104]
[1756721125450,97.02,201.25,201.19,2.1755616]
[1756721125652,96.74,201.25,201.2,4.40118818]
[1756721125950,0.28,201.24,201.18,0.03647406]
[1756721126151,97.02,201.25,201.19,4.40129737]
[1756721126353,97.02,201.25,201.18,0.03647406]
[1756721126652,97.02,201.25,201.19,4.40138538]
[1756721126852,97.02,201.25,201.18,0.03647406]
[1756721127049,97.02,201.25,201.19,4.40138571]
[1756721127249,97.02,201.25,201.18,0.03647406]
[1756721127455,97.02,201.25,201.19,4.40219529]
[1756721127750,97.02,201.25,201.18,0.03647406]
[1756721127949,97.02,201.25,201.19,4.40219562]
[1756721128155,97.02,201.25,201.18,0.03647406]
[1756721128454,97.02,201.25,201.19,4.40324158]
[1756721128654,97.02,201.25,201.18,0.03647406]
[1756721128953,97.02,201.25,201.19,4.40342195]
[1756721129149,97.02,201.25,201.18,0.03647406]
[1756721129344,97.02,201.25,201.19,4.40434075]
[1756721129553,97.02,201.25,201.18,0.03647406]
[1756721129753,97.02,201.25,201.19,4.40454737]
[1756721130054,97.02,201.25,201.2,4.40679153]
[1756721130349,97.02,201.25,201.18,0.03647406]
[1756721130554,2.1755616,201.22,201.18,0.03647406]
[1756721131756,58.94,201.21,201.18,0.03647406]
[1756721132856,17.98059845,201.28,201.18,0.03647406]
[1756721132857,6.34371349,201.28,201.18,0.03647406]
[1756721133057,116.3555616,201.27,201.18,0.03647406]
[1756721133751,2.1755616,201.24,201.18,0.03647406]
[1756721134858,2.1755616,201.21,201.18,0.03647406]
[1756721135252,0.5,201.2,201.18,0.03647406]
[1756721135556,126.5,201.19,201.18,0.03647406]
[1756721136856,129.1755616,201.19,201.18,0.03647406]
[1756721137851,129.1755616,201.19,201.08,2.1755616]
[1756721137852,0.46352594,201.17,201.08,2.1755616]
[1756721138156,128.6755616,201.19,201.08,2.1755616]
[1756721138351,128.6755616,201.19,201.07,7.65]
[1756721139152,2.1755616,201.2,201.11,0.03143961]
[1756721139358,9.86,201.19,201.11,0.03143961]
[1756721139557,126.5,201.18,201.08,2.1755616]
[1756721140057,126.5,201.18,201.13,0.03531385]
[1756721141758,334.24,201.21,201.13,0.03531385]
[1756721142462,334.24,201.21,201.14,6.58909238]
[1756721142753,334.24,201.21,201.15,4.41353078]
[1756721143060,334.24,201.21,201.16,11.86353078]
[1756721143362,126.48,201.2,201.17,4.41353078]
[1756721143660,126.48,201.2,201.18,4.41353078]
[1756721143855,126.48,201.2,201.19,4.41353078]
[1756721144051,334.24,201.21,201.16,2.1755616]
[1756721144257,334.24,201.21,201.2,7.45]
[1756721144453,126.48,201.23,201.2,4.41480013]
[1756721144768,126.48,201.23,201.21,11.86480013]
[1756721145064,126.48,201.24,201.22,6.59036173]
[1756721145355,126.48,201.24,201.23,4.41480013]
[1756721145953,0.86503685,201.28,201.23,4.41480013]
[1756721146154,0.86503685,201.28,201.24,11.86480013]
[1756721146354,126.48,201.27,201.25,6.59036173]
[1756721146553,126.48,201.27,201.26,4.41480013]
[1756721148355,126.46,201.27,201.26,4.41480013]
[1756721149269,0.86503685,201.28,201.26,4.41480013]
[1756721149469,334.24,201.33,201.27,4.41480013]
[1756721149766,127.30485412,201.32,201.28,4.41480013]
[1756721149967,127.30485412,201.32,201.29,4.41480013]
[1756721150168,127.30485412,201.32,201.3,4.41480013]
[1756721150368,127.30485412,201.32,201.31,4.41480013]
[1756721151564,334.24,201.33,201.31,4.41480013]
[1756721151866,460.66,201.33,201.32,4.41480013]
[1756721152966,5.47867664,201.42,201.32,4.41480013]
[1756721153171,126.4,201.41,201.33,4.41480013]
[1756721153373,0.86454257,201.4,201.34,4.41480013]
[1756721153571,0.86454257,201.4,201.35,4.41480013]
[1756721153765,0.86454257,201.4,201.36,4.41480013]
[1756721154071,0.86454257,201.4,201.35,0.03661648]
[1756721158280,0.86454257,201.4,201.36,4.39977558]
[1756721158574,0.86454257,201.4,201.35,9.66217808]
[1756721158575,0.86454257,201.4,201.35,2.21217808]
[1756721158776,126.36,201.39,201.36,11.84563209]
[1756721158979,126.36,201.39,201.35,0.03661648]
[1756721160882,126.34,201.38,201.35,0.03661648]
[1756721161285,0.86439226,201.43,201.36,9.6255616]
[1756721161481,126.34,201.42,201.36,9.6255616]
[1756721161684,126.34,201.42,201.35,0.03661648]
[1756721161881,128.5155616,201.42,201.35,0.03661648]
[1756721162078,126.34,201.42,201.35,0.03661648]
[1756721165590,3.47473491,201.41,201.35,0.03661648]
[1756721167687,126.3,201.4,201.35,0.03661648]
[1756721171487,126.28,201.39,201.35,0.03661648]
[1756721171890,129.75473491,201.39,201.35,0.03661648]
[1756721172185,3.47473491,201.36,201.35,0.03661648]
[1756721172586,3.97473491,201.36,201.23,7.76]
[1756721172789,126.28,201.35,201.23,7.76]
[1756721173992,0.03386231,201.31,201.23,7.76]
[1756721174189,121.12,201.3,201.23,7.76]
[1756721174690,115.54,201.29,201.23,7.76]
[1756721175887,115.54,201.29,201.19,7.76]
[1756721176592,0.03225191,201.26,201.19,7.76]
[1756721178188,110.18,201.25,201.19,3.47473491]
[1756721178493,110.18,201.25,201.19,11.23473491]
[1756721178694,0.03225191,201.26,201.19,11.23473491]
[1756721178894,0.03225191,201.26,201.2,7.76]
[1756721182093,0.03225191,201.26,201.23,7.76]
[1756721182591,2.9,201.29,201.23,7.76]
[1756721182792,0.0356058,201.27,201.22,2.17333183]
[1756721183192,0.0356058,201.27,201.26,7.76]
[1756721186495,0.0356058,201.27,201.16,7.76]
[1756721186694,0.0356058,201.27,201.23,2.17333183]
[1756721186997,0.0356058,201.27,201.23,9.93333183]
[1756721188992,0.0356058,201.27,201.23,2.17333183]
[1756721189299,0.0356058,201.27,201.24,7.76]
[1756721193995,0.0356058,201.27,201.15,7.76]
[1756721194304,2.22,201.32,201.23,7.76]
[1756721195099,0.03234784,201.3,201.19,7.76]
[1756721195303,2.17333183,201.29,201.16,2.17333183]
[1756721195899,0.03316877,201.25,201.16,2.17333183]
[1756721196102,54.5,201.24,201.16,2.17333183]
[1756721196803,0.03316877,201.25,201.17,7.76]
[1756721197004,0.03316877,201.25,201.19,2.17333183]
[1756721197401,0.03316877,201.25,201.23,7.76]
[1756721197794,68.64,201.29,201.23,7.76]
[1756721198205,68.64,201.29,201.22,2.17333183]
[1756721198206,0.03584273,201.26,201.22,2.17333183]
[1756721198400,0.03584273,201.26,201.23,7.82]
[1756721198602,110.98030948,201.34,201.25,2.17333183]
[1756721198902,334.02,201.37,201.29,7.82]
[1756721199108,334.02,201.37,201.31,2.17333183]
[1756721199305,334.02,201.37,201.29,7.82]
[1756721199500,460.22,201.37,201.26,2.17333183]
[1756721199807,460.22,201.37,201.26,2.205444]
[1756721202006,462.39333183,201.37,201.26,2.205444]
[1756721202310,2.17333183,201.34,201.26,0.03211217]
[1756721203106,2.17333183,201.31,201.26,0.03211217]
[1756721203311,0.03,201.29,201.26,0.03211217]
[1756721203513,126.18,201.3,201.26,0.03211217]
[1756721203514,0.03,201.27,201.26,0.03211217]
[1756721204512,0.53,201.27,201.26,0.01211217]
[1756721204811,4.00938143,201.27,201.12,7.82]
[1756721205009,3.50938143,201.27,201.12,7.82]
[1756721206112,0.03429196,201.22,201.12,7.82]
[1756721208408,0.03429196,201.22,201.05,334.02]
[1756721208409,0.03429196,201.22,201.07,7.82]
[1756721208917,337.53938143,201.23,201.07,7.82]
[1756721209119,0.03264791,201.17,201.07,7.82]
[1756721209417,126.16,201.16,201.07,7.82]
[1756721216520,0.03264791,201.17,201.07,7.82]
[1756721216720,126.18,201.16,201.07,7.82]
[1756721217223,0.03264791,201.17,201.07,7.82]
[1756721217525,126.16,201.16,201.07,7.82]
[1756721221329,126.16,201.16,201.08,4.44177383]
[1756721221521,126.16,201.16,201.09,4.44177383]
[1756721221717,126.16,201.16,201.1,4.44177383]
[1756721221921,126.16,201.16,200.9,342.38136653]
[1756721221922,3.47938143,201.15,201.11,4.44177383]
[1756721222123,3.47938143,201.15,201.12,4.44177383]
[1756721222331,3.51560594,201.15,201.13,4.44177383]
[1756721222626,86.42,201.14,201.0,7.82]
[1756721222926,126.14,201.13,201.01,4.43979596]
[1756721223127,0.03272262,201.09,201.02,4.43979596]
[1756721223327,0.03272262,201.09,201.03,4.43979596]
[1756721223527,0.03272262,201.09,201.04,4.43979596]
[1756721223727,0.03272262,201.09,201.05,4.43979596]
[1756721223918,0.03272262,201.09,201.06,4.43979596]
[1756721224122,0.03272262,201.09,201.07,4.43979596]
[1756721224320,0.03272262,201.09,201.08,4.43979596]
[1756721226030,126.19272262,201.09,201.08,4.43979596]
[1756721226728,126.19272262,201.09,201.08,4.43398144]
[1756721227824,0.03272262,201.09,201.08,4.43398144]
[1756721232835,0.03272262,201.09,201.08,12.29398144]
[1756721233136,0.03272262,201.09,201.08,4.43398144]
[1756721234124,0.53272262,201.09,201.08,4.43398144]
[1756721237031,0.03272262,201.09,201.08,4.43398144]
[1756721237336,0.03272262,201.09,201.03,7.86]
[1756721237534,0.03272262,201.09,201.04,12.29151737]
[1756721237734,0.03272262,201.09,201.05,12.29151737]
[1756721237936,0.03272262,201.09,201.06,4.43151737]
[1756721238133,0.03272262,201.09,201.07,4.43151737]
[1756721238337,0.03272262,201.09,201.08,4.43151737]
[1756721240943,0.53272262,201.09,201.08,4.43151737]
[1756721242742,0.53272262,201.09,200.99,7.86]
[1756721242941,0.03272262,201.09,201.0,4.4331067]
[1756721243143,0.03272262,201.09,201.01,4.4331067]
[1756721243442,0.03272262,201.09,201.02,4.4331067]
[1756721243737,0.03272262,201.09,201.03,4.4331067]
[1756721244042,0.03272262,201.09,201.04,4.4331067]
[1756721244236,0.03272262,201.09,201.05,4.4331067]
[1756721244437,0.03272262,201.09,201.06,4.4331067]
[1756721244637,0.03272262,201.09,201.07,4.4331067]
[1756721244840,0.03272262,201.09,201.01,7.86]
[1756721245037,0.03272262,201.09,201.02,4.43644106]
[1756721245242,0.03272262,201.09,201.03,4.43644106]
[1756721245442,0.03272262,201.09,201.04,4.43644106]
[1756721245642,0.03272262,201.09,201.05,4.43644106]
[1756721245843,0.03272262,201.09,201.06,4.43644106]
[1756721246047,0.03272262,201.09,201.07,4.43644106]
[1756721246349,0.03272262,201.09,201.08,4.44267636]
[1756721247945,0.03272262,201.09,201.01,7.86]
[1756721248146,0.03272262,201.09,201.02,4.44634452]
[1756721248353,0.03272262,201.09,201.03,4.44634452]
[1756721248659,0.03272262,201.09,201.04,4.44634452]
[1756721248859,3.4838169,201.08,201.05,4.44634452]
[1756721249055,3.4838169,201.08,201.06,4.44634452]
[1756721249259,3.4838169,201.08,200.97,7.86]
[1756721249460,3.4838169,201.08,200.98,4.45020393]
[1756721249662,3.4838169,201.08,200.99,4.45020393]
[1756721249960,3.4838169,201.08,200.97,7.86]
[1756721249961,3.4838169,201.08,201.0,4.45020393]
[1756721250166,3.4838169,201.08,201.01,4.45020393]
[1756721250460,0.03539707,201.06,201.02,4.45020393]
[1756721250664,10.18,201.05,201.03,4.45020393]
[1756721250856,10.18,201.05,201.04,4.45020393]
[1756721251062,10.18,201.05,200.97,7.86]
[1756721251262,10.18,201.05,200.98,4.44876694]
[1756721251562,10.18,201.05,200.99,4.44876694]
[1756721251862,10.18,201.05,201.0,4.44876694]
[1756721252055,2.17994719,201.03,201.01,4.44876694]
[1756721252261,2.17994719,201.03,200.97,7.86]
[1756721252262,2.17994719,201.03,201.02,4.44876694]
[1756721254060,0.5,201.03,201.02,4.44876694]
[1756721254253,0.5,201.03,200.9,2.17994719]
[1756721254254,2.67994719,201.03,200.94,7.86]
[1756721254456,2.17994719,201.03,200.94,7.86]
[1756721255158,0.03405288,201.01,200.94,7.86]
[1756721257359,0.03405288,201.01,200.84,7.86]
[1756721257360,2.17994719,200.96,200.84,7.86]
[1756721257561,47.6,200.95,200.84,7.86]
[1756721257960,2.17994719,200.93,200.84,7.86]
[1756721258161,0.03468012,200.92,200.84,7.86]
[1756721264172,0.03468012,200.92,200.86,7.75]
[1756721264373,2.34,200.94,200.86,7.75]
[1756721264571,2.34,200.94,200.86,7.78635865]
[1756721264867,2.34,200.94,200.87,2.17994719]
[1756721265072,2.34,200.94,200.88,7.75]
[1756721265273,2.17994719,201.0,200.88,7.75]
[1756721265469,2.17994719,201.0,200.9,2.17994719]
[1756721265771,40.22,200.99,200.91,7.75]
[1756721265973,40.22,200.99,200.93,0.03635577]
[1756721266169,2.17994719,200.97,200.93,0.03635577]
[1756721267966,40.22,200.99,200.93,0.03635577]
[1756721269872,2.17994719,200.97,200.93,0.03635577]
[1756721270272,2.23994719,200.97,200.93,0.03635577]
[1756721270573,2.17994719,200.94,200.93,0.03635577]
[1756721271871,80.85994719,200.94,200.93,0.03635577]
[1756721274075,78.68,200.94,200.93,0.03635577]
[1756721278582,2.17994719,200.96,200.93,0.03635577]
[1756721278884,40.3,200.96,200.93,7.78635577]
[1756721279477,40.3,200.96,200.93,0.03635577]
[1756721280372,78.34,200.98,200.94,4.37829712]
[1756721280576,2.24994719,201.04,200.95,4.37829712]
[1756721280882,114.14,201.03,200.96,4.37829712]
[1756721281077,114.14,201.03,200.97,4.41600471]
[1756721281283,114.14,201.03,200.98,4.37829712]
[1756721281486,114.14,201.03,200.99,4.37829712]
[1756721281784,114.14,201.03,201.0,4.37829712]
[1756721281981,114.14,201.03,200.97,0.03770759]
[1756721282186,114.14,201.03,200.98,4.3992815]
[1756721282379,114.14,201.03,200.97,0.03770759]
[1756721282579,114.14,201.03,200.98,4.40082974]
[1756721282883,114.21,201.03,200.99,4.40082974]
[1756721283084,114.21,201.03,201.0,4.40082974]
[1756721283284,114.21,201.03,200.97,0.03770759]
[1756721283484,114.21,201.03,200.98,4.40247173]
[1756721283682,114.21,201.03,200.99,4.40247173]
[1756721283877,114.21,201.03,200.97,0.03770759]
[1756721283878,114.21,201.03,201.0,4.40247173]
[1756721284074,114.21,201.03,200.97,0.03770759]
[1756721284275,114.21,201.03,200.98,4.40398091]
[1756721284579,114.21,201.03,200.97,0.03770759]
[1756721284580,114.21,201.03,200.99,4.40398091]
[1756721284782,114.21,201.03,201.0,4.40398091]
[1756721284990,114.21,201.03,200.97,0.03770759]
[1756721285287,114.21,201.03,200.98,4.4043141]
[1756721285481,114.21,201.03,200.99,4.4043141]
[1756721285684,114.14,201.03,201.0,4.4043141]
[1756721285880,114.14,201.03,200.97,0.03770759]
[1756721286087,114.14,201.03,200.98,4.40615802]
[1756721286282,114.14,201.03,200.99,4.40615802]
[1756721286487,114.14,201.03,201.0,4.40615802]
[1756721286688,114.14,201.03,201.01,4.40615802]
[1756721286987,114.14,201.03,200.97,0.03770759]
[1756721287189,114.14,201.03,200.98,4.40784681]
[1756721287488,114.21,201.03,200.99,4.40784681]
[1756721287689,114.21,201.03,201.0,4.40784681]
[1756721287889,114.21,201.03,200.97,0.03770759]
[1756721288187,0.04,201.0,200.97,0.03770759]
[1756721288491,2.21994719,201.0,200.97,0.03770759]
[1756721290086,2.17994719,201.0,200.97,0.03770759]
[1756721290693,125.86,201.0,200.97,0.03770759]
[1756721290890,334.4,201.09,200.97,0.03770759]
[1756721291085,2.17994719,201.07,200.97,0.03770759]
[1756721291986,2.21994719,201.07,200.97,0.03770759]
[1756721292189,2.17994719,201.04,200.97,0.03770759]
[1756721292494,125.86,201.05,200.98,7.69]
[1756721295593,128.03994719,201.05,200.98,7.69]
[1756721296099,125.86,201.05,200.98,7.69]
[1756721296983,125.86,201.05,200.97,0.03770759]
[1756721297789,2.17994719,201.07,200.97,0.03770759]
[1756721298094,125.8,201.06,200.99,7.69]
[1756721298490,334.4,201.09,201.02,7.69]
[1756721298691,460.2,201.09,201.02,7.69]
[1756721300097,125.78,201.08,201.02,7.69]
[1756721301393,125.78,201.08,201.04,2.17994719]
[1756721301697,125.78,201.08,201.05,7.69]
[1756721301900,125.78,201.08,201.04,9.86994719]
[1756721302502,125.78,201.08,201.04,9.90444792]
[1756721304999,125.78,201.08,201.04,2.21444792]
[1756721305301,125.78,201.08,201.04,0.03450073]
[1756721308904,0.04,201.07,201.04,0.03450073]
[1756721309705,125.78,201.08,201.04,0.03450073]
[1756721310405,0.04,201.07,201.04,0.03450073]
[1756721311210,127.95994719,201.08,201.04,0.03450073]
[1756721311397,0.04,201.07,201.04,0.03450073]
[1756721311800,127.95994719,201.08,201.04,0.03450073]
[1756721312002,0.04,201.07,201.04,0.03450073]
[1756721312196,2.21994719,201.05,201.04,0.03450073]
[1756721314707,0.04,201.05,201.04,0.03450073]
[1756721314904,2.21994719,201.05,201.04,0.03450073]
[1756721316804,0.04,201.05,201.04,0.03450073]
[1756721317010,2.21994719,201.05,201.04,0.03450073]
[1756721320107,2.17994719,201.05,201.04,0.03450073]
[1756721320312,125.6,201.05,201.04,0.03450073]
[1756721322515,125.64,201.05,201.04,0.03450073]
[1756721324013,125.64,201.05,200.93,2.17994719]
[1756721324213,2.17994719,201.03,200.93,2.17994719]
[1756721325416,0.03702589,201.0,200.93,2.17994719]
[1756721325810,0.03702589,201.0,200.92,7.92]
[1756721326013,105.12,200.99,200.92,7.92]
[1756721328320,0.03702589,201.0,200.92,7.92]
[1756721329119,0.03702589,201.0,200.87,4.1615136]
[1756721329120,0.03702589,201.0,200.94,2.17994719]
[1756721329419,0.03702589,201.0,200.98,7.92]
[1756721329720,96.16,201.06,200.98,7.92]
[1756721329919,0.03614758,201.01,200.98,7.92]
[1756721330613,0.03614758,201.01,200.91,7.92]
[1756721330812,0.03614758,201.01,200.99,7.92]
[1756721331920,0.03614758,201.01,200.98,2.17994719]
[1756721332316,0.03614758,201.01,200.98,10.09994719]
[1756721332716,0.03614758,201.01,200.99,7.92]
[1756721336322,0.03614758,201.01,200.98,2.17994719]
[1756721336524,0.03614758,201.01,200.99,7.92]
[1756721338525,0.03614758,201.01,200.91,7.92]
[1756721338725,0.03614758,201.01,200.94,7.92]
[1756721338920,0.03614758,201.01,200.94,10.09994719]
[1756721339121,96.16,201.06,200.94,10.09994719]
[1756721339427,0.03615382,201.0,200.98,7.92]
[1756721340422,0.03615382,201.0,200.97,2.17994719]
[1756721340621,0.03615382,201.0,200.98,7.92]
[1756721340822,0.03615382,201.0,200.97,2.17994719]
[1756721341326,0.03615382,201.0,200.98,7.92]
[1756721342921,0.03615382,201.0,200.98,2.17994719]
[1756721343127,334.44,201.11,200.99,7.92]
[1756721343327,334.44,201.11,201.02,10.09994719]
[1756721343528,334.44,201.11,201.05,2.17994719]
[1756721344024,334.44,201.11,201.03,7.92]
[1756721344327,334.44,201.11,201.05,2.17994719]
[1756721346025,334.44,201.11,201.04,0.03317473]
[1756721346932,334.44,201.11,201.05,2.17994719]
[1756721347132,125.4,201.14,201.06,7.92]
[1756721347535,0.03,201.2,201.08,2.17994719]
[1756721347833,125.4,201.19,201.08,2.21346368]
[1756721348830,2.20994719,201.18,201.08,0.03351649]
[1756721350837,0.03,201.18,201.08,9.73346368]
[1756721351039,45.53,201.18,201.08,9.73346368]
[1756721352132,45.5,201.18,201.08,9.73346368]
[1756721352333,45.5,201.18,201.11,2.17994719]
[1756721352532,45.5,201.18,201.11,9.69994719]
[1756721352932,45.5,201.18,201.11,2.17994719]
[1756721353132,45.5,201.18,201.12,0.03536728]
[1756721354034,0.03,201.17,201.12,0.03536728]
[1756721354230,47.67994719,201.18,201.12,0.03536728]
[1756721354432,2.17994719,201.13,201.12,0.00536728]
[1756721354631,2.17994719,201.13,200.97,7.52]
[1756721354833,2.17994719,201.1,200.97,7.52]
[1756721355141,7.9,201.09,200.98,2.17994719]
[1756721355345,2.17994719,201.14,201.01,2.17994719]
[1756721355532,10.22,201.13,201.01,2.17994719]
[1756721356040,0.0364879,201.1,201.0,7.52]
[1756721358337,0.0364879,201.1,201.02,7.52]
[1756721358939,4.42,201.13,201.02,7.52]
[1756721359137,0.03629149,201.08,201.02,7.52]
[1756721359537,46.8,201.14,201.02,7.52]
[1756721359932,0.03568381,201.07,201.01,3.48497918]
[1756721360131,0.03568381,201.07,201.02,7.52]
[1756721360332,0.03568381,201.07,201.01,3.48497918]
[1756721360541,0.03568381,201.07,201.04,3.48497918]
[1756721360737,0.86568241,201.15,201.04,3.48497918]
[1756721360738,0.86568241,201.15,201.05,7.52]
[1756721360938,43.42,201.16,201.08,7.52]
[1756721361145,84.58,201.18,201.08,7.52]
[1756721361441,124.5,201.18,201.09,3.48497918]
[1756721361643,0.8654994,201.19,201.09,3.48497918]
[1756721361644,126.1654994,201.19,201.09,3.48497918]
[1756721362040,126.1654994,201.19,201.11,0.03462042]
[1756721362041,0.8654994,201.19,201.11,0.03462042]
[1756721371947,125.26,201.2,201.11,3.5195996]
[1756721372940,125.26,201.2,201.12,7.52]
[1756721373743,125.26,201.2,201.11,3.5195996]
[1756721377949,125.26,201.2,201.11,2.21017389]
[1756721378344,0.04,201.21,201.11,2.21017389]
[1756721378548,125.16,201.19,201.11,2.21017389]
[1756721379045,0.86541331,201.2,201.11,2.21017389]
[1756721379246,445.88335983,201.23,201.17,2.17555347]
[1756721379542,334.42,201.23,201.17,2.17555347]
[1756721379748,2.17555347,201.32,201.2,2.17555347]
[1756721379948,334.24,201.36,201.2,2.17555347]
[1756721379949,0.04,201.31,201.2,2.17555347]
[1756721380146,126.00499385,201.3,201.2,2.17555347]
[1756721380649,126.00499385,201.3,201.23,0.03623204]
[1756721381744,0.86499385,201.3,201.23,0.03623204]
[1756721381943,125.12,201.29,201.23,0.03623204]
[1756721384551,0.86499385,201.3,201.23,0.03623204]
[1756721384756,97.88,201.29,201.25,2.17555347]
[1756721385452,97.88,201.29,201.23,0.03623204]
[1756721385647,97.88,201.29,201.25,2.17555347]
[1756721385845,97.88,201.29,201.23,0.03623204]
[1756721386047,0.86499385,201.3,201.23,0.03623204]
[1756721386953,125.08,201.32,201.26,2.17555347]
[1756721387756,125.08,201.32,201.27,0.03495025]
[1756721388051,0.04,201.35,201.29,2.17555347]
[1756721388357,459.3,201.36,201.29,2.17555347]
[1756721390156,459.3,201.36,201.27,0.03495025]
[1756721390356,459.3,201.36,201.27,2.21050372]
[1756721390553,125.04,201.35,201.27,2.21050372]
[1756721391354,125.08,201.38,201.3,2.17555347]
[1756721392156,125.08,201.38,201.32,0.03465093]
[1756721394762,0.04,201.42,201.32,8.00465093]
[1756721395055,0.04,201.42,201.32,2.2102044]
[1756721395258,0.04,201.42,201.28,7.97]
[1756721395465,0.04,201.42,201.35,0.03490287]
[1756721398365,0.04,201.42,201.35,2.21045634]
[1756721400269,0.04,201.42,201.35,0.03490287]
[1756721405071,2.17555347,201.4,201.35,0.03490287]
[1756721405264,2.17555347,201.4,201.23,7.97]
[1756721405469,2.17555347,201.4,201.26,2.17555347]
[1756721405873,36.34,201.39,201.26,10.14555347]
[1756721406571,0.03466323,201.35,201.26,10.14555347]
[1756721409474,0.03466323,201.35,201.26,7.97]
[1756721409772,0.03466323,201.35,201.26,2.17555347]
[1756721410470,0.03466323,201.35,201.29,2.17555347]
[1756721410676,0.03466323,201.35,201.33,7.97]
[1756721410877,20.82,201.38,201.33,7.97]
[1756721411079,20.82,201.38,201.32,2.17555347]
[1756721411377,0.03421473,201.36,201.33,7.97]
[1756721412176,0.03421473,201.36,201.32,2.17555347]
[1756721412374,0.03421473,201.36,201.33,7.97]
[1756721412575,0.03421473,201.36,201.32,2.17555347]
[1756721412772,0.03421473,201.36,201.35,2.17555347]
[1756721414180,0.03421473,201.36,201.33,7.97]
[1756721414181,0.03421473,201.36,201.32,2.17555347]
[1756721414382,0.03421473,201.36,201.33,0.03685999]
[1756721415777,38.87421473,201.36,201.33,0.03685999]
[1756721416278,2.17555347,201.35,201.33,0.03685999]
[1756721416482,2.67555347,201.35,201.33,0.03685999]
[1756721416682,2.17555347,201.35,201.33,0.03685999]
[1756721416986,41.0497682,201.36,201.33,0.03685999]
[1756721419385,41.5497682,201.36,201.33,0.03685999]
[1756721420281,41.0497682,201.36,201.33,0.03685999]
[1756721420480,41.0497682,201.36,201.2,7.97]
[1756721420688,2.17555347,201.31,201.2,7.97]
[1756721420882,38.84,201.36,201.2,7.97]
[1756721421085,2.17555347,201.3,201.2,7.97]
[1756721421295,2.17555347,201.33,201.2,7.97]